[Event "GrandPrix_30.05"]
[Site "Chess.com"]
[Date "2020.05.30"]
[Round "3"]
[White "khekhm"]
[Black "VMikhalevski"]
[Result "0-1"]
[WhiteElo "2422"]
[BlackElo "2685"]
[TimeControl "600+2"]
[EndTime "9:25:18 PDT"]
[Termination "VMikhalevski won on time"]

1. e4 {[%clk 0:10:01.9]} 1... e5 {[%clk 0:09:59.3]} 2. Nf3 {[%clk 0:10:01.5]}
2... Nc6 {[%clk 0:09:59.8]} 3. Bb5 {[%clk 0:09:49.2]} 3... g6 {[%clk 0:09:53.1]}
4. c3 {[%clk 0:09:37]} 4... Bg7 {[%clk 0:09:53.4]} 5. d4 {[%clk 0:09:37.1]} 5...
exd4 {[%clk 0:09:51.7]} 6. cxd4 {[%clk 0:09:37.5]} 6... a6 {[%clk 0:09:52.8]} 7.
Ba4 {[%clk 0:09:38.2]} 7... b5 {[%clk 0:09:48]} 8. Bb3 {[%clk 0:09:39.2]} 8...
d6 {[%clk 0:09:47.2]} 9. h3 {[%clk 0:09:26.2]} 9... Nf6 {[%clk 0:09:34.5]} 10.
O-O {[%clk 0:09:21.4]} 10... O-O {[%clk 0:09:34.5]} 11. e5 {[%clk 0:09:06.6]}
11... dxe5 {[%clk 0:07:59.1]} 12. dxe5 {[%clk 0:09:06.8]} 12... Qxd1 {[%clk
0:06:58.9]} 13. Rxd1 {[%clk 0:09:08.7]} 13... Ne8 {[%clk 0:06:59.3]} 14. Bd5
{[%clk 0:08:27.9]} 14... Bb7 {[%clk 0:06:59.7]} 15. Be3 {[%clk 0:07:53.8]} 15...
Rb8 {[%clk 0:06:50.7]} 16. Bc5 {[%clk 0:06:44.4]} 16... Nxe5 {[%clk 0:06:49.9]}
17. Bxb7 {[%clk 0:06:20.9]} 17... Rxb7 {[%clk 0:06:43.6]} 18. Nxe5 {[%clk
0:05:54.8]} 18... Bxe5 {[%clk 0:06:43.3]} 19. Bxf8 {[%clk 0:05:55.4]} 19... Kxf8
{[%clk 0:06:37.8]} 20. Nc3 {[%clk 0:05:52.5]} 20... c5 {[%clk 0:06:22]} 21. Rac1
{[%clk 0:05:21.8]} 21... c4 {[%clk 0:06:08.8]} 22. Rc2 {[%clk 0:05:17.7]} 22...
Nf6 {[%clk 0:04:22.8]} 23. Rd8+ {[%clk 0:04:54.4]} 23... Kg7 {[%clk 0:04:19.4]}
24. Re2 {[%clk 0:04:38.3]} 24... Bxc3 {[%clk 0:04:03.9]} 25. bxc3 {[%clk
0:04:37.7]} 25... a5 {[%clk 0:04:04.9]} 26. g4 {[%clk 0:03:35.9]} 26... h6
{[%clk 0:03:58.6]} 27. Rd4 {[%clk 0:03:01.8]} 27... Rc7 {[%clk 0:03:39.6]} 28.
a3 {[%clk 0:02:54.8]} 28... Rc5 {[%clk 0:03:31]} 29. f3 {[%clk 0:02:12.4]} 29...
g5 {[%clk 0:03:17.2]} 30. Kf2 {[%clk 0:02:12.9]} 30... Kf8 {[%clk 0:03:03.2]}
31. Ke1 {[%clk 0:02:02.8]} 31... h5 {[%clk 0:02:56.7]} 32. Kd2 {[%clk
0:02:01.7]} 32... h4 {[%clk 0:02:50.5]} 33. f4 {[%clk 0:01:34.6]} 33... gxf4
{[%clk 0:02:32.9]} 34. Rxf4 {[%clk 0:01:36.5]} 34... Rd5+ {[%clk 0:02:31.6]} 35.
Kc2 {[%clk 0:01:29.9]} 35... Kg7 {[%clk 0:02:30]} 36. Ref2 {[%clk 0:01:28.1]}
36... Rd6 {[%clk 0:02:25.1]} 37. Rf5 {[%clk 0:01:23.4]} 37... Nd5 {[%clk
0:02:20.7]} 38. Rxf7+ {[%clk 0:01:22.4]} 38... Kg6 {[%clk 0:02:21.1]} 39. R7f3
{[%clk 0:01:19.1]} 39... Re6 {[%clk 0:02:19.7]} 40. Rd2 {[%clk 0:01:06.6]} 40...
Re5 {[%clk 0:02:07.5]} 41. Kb2 {[%clk 0:01:00.9]} 41... Ne3 {[%clk 0:02:07.9]}
42. Rd8 {[%clk 0:00:52]} 42... Nd5 {[%clk 0:02:02.1]} 43. Rg8+ {[%clk 0:00:52]}
43... Kh7 {[%clk 0:02:02.1]} 44. Rb8 {[%clk 0:00:52.6]} 44... Re2+ {[%clk
0:01:33.4]} 45. Kc1 {[%clk 0:00:50.1]} 45... b4 {[%clk 0:01:32.7]} 46. cxb4
{[%clk 0:00:46]} 46... axb4 {[%clk 0:01:33.5]} 47. axb4 {[%clk 0:00:45]} 47...
Rh2 {[%clk 0:00:54.2]} 48. Rb5 {[%clk 0:00:27.7]} 48... Rh1+ {[%clk 0:00:53.5]}
49. Kc2 {[%clk 0:00:20]} 49... Rh2+ {[%clk 0:00:53.5]} 50. Kd1 {[%clk 0:00:21]}
50... Rh1+ {[%clk 0:00:51.5]} 51. Ke2 {[%clk 0:00:21.7]} 51... Rh2+ {[%clk
0:00:36.5]} 52. Ke1 {[%clk 0:00:23]} 52... Rh1+ {[%clk 0:00:08.5]} 53. Rf1
{[%clk 0:00:23.2]} 53... Rxf1+ {[%clk 0:00:07.6]} 54. Kxf1 {[%clk 0:00:25.1]}
54... Nf4 {[%clk 0:00:08.9]} 0-1

[Event "GrandPrix_30.05"]
[Site "Chess.com"]
[Date "2020.05.30"]
[Round "3"]
[White "GMStefanova"]
[Black "Poghosyan_Suren"]
[Result "1-0"]
[WhiteElo "2347"]
[BlackElo "2122"]
[TimeControl "600+2"]
[EndTime "9:25:21 PDT"]
[Termination "GMStefanova won by resignation"]

1. d4 {[%clk 0:10:01.9]} 1... Nf6 {[%clk 0:09:58.5]} 2. Nf3 {[%clk 0:10:00.2]}
2... c5 {[%clk 0:09:55.3]} 3. d5 {[%clk 0:09:54.6]} 3... e6 {[%clk 0:09:55.6]}
4. c4 {[%clk 0:09:49.9]} 4... b5 {[%clk 0:09:40.7]} 5. dxe6 {[%clk 0:09:50]}
5... fxe6 {[%clk 0:09:42.6]} 6. cxb5 {[%clk 0:09:50.9]} 6... d5 {[%clk
0:09:43.6]} 7. g3 {[%clk 0:09:31.3]} 7... Bd6 {[%clk 0:09:03.2]} 8. Bg2 {[%clk
0:09:11]} 8... O-O {[%clk 0:09:02.9]} 9. O-O {[%clk 0:09:11]} 9... Nbd7 {[%clk
0:08:39]} 10. Ng5 {[%clk 0:08:52.1]} 10... Qe7 {[%clk 0:08:20]} 11. e4 {[%clk
0:08:47.1]} 11... h6 {[%clk 0:07:57.3]} 12. Nh3 {[%clk 0:07:57.6]} 12... Nxe4
{[%clk 0:07:44.2]} 13. Nf4 {[%clk 0:07:51.5]} 13... Ndf6 {[%clk 0:07:04]} 14.
Ng6 {[%clk 0:07:30.7]} 14... Qf7 {[%clk 0:06:54.5]} 15. Nxf8 {[%clk 0:07:30.3]}
15... Bxf8 {[%clk 0:06:53]} 16. Nc3 {[%clk 0:07:12.2]} 16... Bb7 {[%clk
0:06:35.8]} 17. a4 {[%clk 0:06:50.9]} 17... a5 {[%clk 0:05:59.1]} 18. Qe2 {[%clk
0:06:32]} 18... Nd6 {[%clk 0:05:18.1]} 19. Bf4 {[%clk 0:05:52]} 19... Nf5 {[%clk
0:05:12.6]} 20. Rfe1 {[%clk 0:05:34]} 20... Nd4 {[%clk 0:05:09.3]} 21. Qd3
{[%clk 0:05:14.4]} 21... g5 {[%clk 0:04:27]} 22. Be5 {[%clk 0:04:59.6]} 22...
Rc8 {[%clk 0:03:34.3]} 23. Bh3 {[%clk 0:03:25]} 23... g4 {[%clk 0:02:42.3]} 24.
Bg2 {[%clk 0:02:39.1]} 24... Nf5 {[%clk 0:02:29.9]} 25. Bxf6 {[%clk 0:02:13.7]}
25... Qxf6 {[%clk 0:02:31.8]} 26. Qe2 {[%clk 0:02:13.4]} 26... Ng7 {[%clk
0:01:48]} 27. Qxg4 {[%clk 0:02:10.9]} 27... c4 {[%clk 0:01:49.4]} 28. Qf3 {[%clk
0:01:34.2]} 28... Qg6 {[%clk 0:01:34.5]} 29. Ne2 {[%clk 0:01:24.8]} 29... e5
{[%clk 0:01:30.4]} 30. Nc3 {[%clk 0:01:12.8]} 30... e4 {[%clk 0:01:30.1]} 31.
Qe2 {[%clk 0:01:00.5]} 31... Bc5 {[%clk 0:01:30.3]} 32. Rad1 {[%clk 0:00:59.6]}
32... Rf8 {[%clk 0:01:04.6]} 33. Rf1 {[%clk 0:00:59.8]} 33... Qf5 {[%clk
0:00:56.7]} 34. Qd2 {[%clk 0:00:39.4]} 34... d4 {[%clk 0:00:52.5]} 35. Ne2
{[%clk 0:00:33]} 35... Ne6 {[%clk 0:00:27.1]} 36. Qxh6 {[%clk 0:00:30.8]} 36...
Rf6 {[%clk 0:00:16.7]} 37. Qh4 {[%clk 0:00:22.8]} 37... Qe5 {[%clk 0:00:06.7]}
38. Nf4 {[%clk 0:00:14.2]} 38... Nxf4 {[%clk 0:00:07.2]} 39. gxf4 {[%clk
0:00:15.2]} 39... Rxf4 {[%clk 0:00:08.6]} 40. Qg3+ {[%clk 0:00:16.3]} 40... Kh8
{[%clk 0:00:09.8]} 41. Qh3+ {[%clk 0:00:16.6]} 41... Kg7 {[%clk 0:00:10.4]} 42.
Qg3+ {[%clk 0:00:17.8]} 42... Kh8 {[%clk 0:00:10.4]} 43. Qh3+ {[%clk 0:00:18.7]}
43... Kg7 {[%clk 0:00:11.6]} 44. Qg3+ {[%clk 0:00:19.4]} 44... Kf6 {[%clk
0:00:12.4]} 45. Qg8 {[%clk 0:00:15.7]} 45... d3 {[%clk 0:00:11.3]} 46. Qxc4
{[%clk 0:00:15.2]} 46... Qg5 {[%clk 0:00:10.2]} 47. Kh1 {[%clk 0:00:14.2]} 47...
Rh4 {[%clk 0:00:09.7]} 48. Qc3+ {[%clk 0:00:13.3]} 48... Kg6 {[%clk 0:00:09.2]}
49. Rg1 {[%clk 0:00:12.1]} 49... Kh6 {[%clk 0:00:09.7]} 50. Qh8+ {[%clk
0:00:11.8]} 50... Kg6 {[%clk 0:00:10.9]} 51. Qg8+ {[%clk 0:00:11.5]} 51... Kf6
{[%clk 0:00:11.2]} 52. Qxg5+ {[%clk 0:00:12.4]} 52... Kxg5 {[%clk 0:00:12.6]}
53. Bxe4+ {[%clk 0:00:13.4]} 53... Kf6 {[%clk 0:00:12.2]} 54. Bxb7 {[%clk
0:00:14.4]} 54... Bd6 {[%clk 0:00:13.3]} 55. Rg2 {[%clk 0:00:15]} 55... Rh3
{[%clk 0:00:13.3]} 56. Be4 {[%clk 0:00:15]} 56... d2 {[%clk 0:00:13.5]} 57. Rxd2
{[%clk 0:00:16.2]} 57... Ke5 {[%clk 0:00:12.3]} 58. Bc6 {[%clk 0:00:15.8]} 58...
Bc7 {[%clk 0:00:10.6]} 59. Rg3 {[%clk 0:00:15.5]} 59... Rh6 {[%clk 0:00:10.3]}
60. Kg2 {[%clk 0:00:16.1]} 60... Kf5 {[%clk 0:00:10.1]} 1-0

[Event "GrandPrix_30.05"]
[Site "Chess.com"]
[Date "2020.05.30"]
[Round "3"]
[White "chessdjw"]
[Black "DaggiGretarsson"]
[Result "0-1"]
[WhiteElo "2214"]
[BlackElo "2144"]
[TimeControl "600+2"]
[EndTime "9:25:24 PDT"]
[Termination "DaggiGretarsson won by resignation"]

1. e4 {[%clk 0:10:01.9]} 1... g6 {[%clk 0:09:59]} 2. d4 {[%clk 0:10:02.4]} 2...
Bg7 {[%clk 0:10:00.1]} 3. Nc3 {[%clk 0:10:04.1]} 3... d6 {[%clk 0:10:00.8]} 4.
Be3 {[%clk 0:10:05.3]} 4... a6 {[%clk 0:10:01.2]} 5. Qd2 {[%clk 0:10:03.9]} 5...
b5 {[%clk 0:10:01.7]} 6. h4 {[%clk 0:09:57.3]} 6... h5 {[%clk 0:10:00.7]} 7.
O-O-O {[%clk 0:09:56.8]} 7... Nd7 {[%clk 0:09:03.5]} 8. Kb1 {[%clk 0:09:51.2]}
8... Bb7 {[%clk 0:08:55]} 9. f3 {[%clk 0:09:30.7]} 9... Ngf6 {[%clk 0:08:36.8]}
10. Nh3 {[%clk 0:09:19.6]} 10... e6 {[%clk 0:08:37.3]} 11. Ng5 {[%clk
0:09:19.1]} 11... Qe7 {[%clk 0:08:37.9]} 12. Ne2 {[%clk 0:08:34.7]} 12... Nb6
{[%clk 0:07:05]} 13. b3 {[%clk 0:07:52.2]} 13... d5 {[%clk 0:07:00.2]} 14. e5
{[%clk 0:07:39.8]} 14... Nfd7 {[%clk 0:07:00.5]} 15. Nf4 {[%clk 0:06:36.7]}
15... c5 {[%clk 0:06:52.1]} 16. dxc5 {[%clk 0:04:18.5]} 16... Nxc5 {[%clk
0:06:51.1]} 17. Bd3 {[%clk 0:03:45.5]} 17... Qc7 {[%clk 0:05:14.7]} 18. Bxc5
{[%clk 0:01:49.4]} 18... Qxc5 {[%clk 0:05:13.4]} 19. Ngxe6 {[%clk 0:01:35.2]}
19... fxe6 {[%clk 0:05:12.5]} 20. Nxe6 {[%clk 0:01:37]} 20... Qe7 {[%clk
0:05:03.6]} 21. Bxg6+ {[%clk 0:01:36.2]} 21... Kd7 {[%clk 0:05:03.5]} 22. Bf5
{[%clk 0:00:51.8]} 22... Ke8 {[%clk 0:03:13.4]} 23. f4 {[%clk 0:00:45.8]} 23...
Rh6 {[%clk 0:02:39.5]} 24. Nd4 {[%clk 0:00:24.3]} 24... Bf8 {[%clk 0:02:13.6]}
25. Rhe1 {[%clk 0:00:20.8]} 25... Qa3 {[%clk 0:01:49.9]} 26. Qd3 {[%clk
0:00:12.3]} 26... Bc8 {[%clk 0:01:14.5]} 27. Bg6+ {[%clk 0:00:13.1]} 27... Kd8
{[%clk 0:01:14.4]} 28. f5 {[%clk 0:00:12.6]} 28... Kc7 {[%clk 0:00:24.8]} 29.
Qc3+ {[%clk 0:00:11.7]} 29... Qc5 {[%clk 0:00:25]} 30. Qe3 {[%clk 0:00:07.2]}
30... Kb7 {[%clk 0:00:22.9]} 31. e6 {[%clk 0:00:08.5]} 31... Qe7 {[%clk
0:00:13.9]} 32. Bf7 {[%clk 0:00:08.7]} 32... Bg7 {[%clk 0:00:11.8]} 33. Qc3
{[%clk 0:00:09.3]} 33... Rb8 {[%clk 0:00:06.9]} 34. Qc6+ {[%clk 0:00:09.7]}
34... Ka7 {[%clk 0:00:07.7]} 35. Qc3 {[%clk 0:00:10.4]} 35... Bb7 {[%clk
0:00:08.2]} 36. Qe3 {[%clk 0:00:10.9]} 36... Qf6 {[%clk 0:00:06.6]} 37. c3
{[%clk 0:00:11.4]} 37... b4 {[%clk 0:00:07.1]} 38. cxb4 {[%clk 0:00:11.5]} 38...
Rc8 {[%clk 0:00:07.6]} 39. Rd3 {[%clk 0:00:12.7]} 39... Bc6 {[%clk 0:00:07.2]}
40. Rc1 {[%clk 0:00:13.3]} 40... Bb5 {[%clk 0:00:08.2]} 41. Rxc8 {[%clk
0:00:14.1]} 41... Bxd3+ {[%clk 0:00:09.1]} 42. Qxd3 {[%clk 0:00:14.9]} 42...
Nxc8 {[%clk 0:00:10.4]} 43. Qc3 {[%clk 0:00:14.8]} 43... Kb7 {[%clk 0:00:07.9]}
44. Qc6+ {[%clk 0:00:15.7]} 44... Kb8 {[%clk 0:00:09.2]} 45. Qxa6 {[%clk
0:00:14.7]} 45... Qxd4 {[%clk 0:00:10]} 46. Qb5+ {[%clk 0:00:15.9]} 46... Nb6
{[%clk 0:00:11.3]} 47. Qe8+ {[%clk 0:00:16.1]} 47... Ka7 {[%clk 0:00:11.2]} 48.
Qe7+ {[%clk 0:00:16]} 48... Ka6 {[%clk 0:00:12.1]} 49. b5+ {[%clk 0:00:17.4]}
49... Kxb5 {[%clk 0:00:12]} 50. Be8+ {[%clk 0:00:18.3]} 50... Ka6 {[%clk
0:00:12.2]} 51. Qa3+ {[%clk 0:00:19.3]} 51... Na4 {[%clk 0:00:12]} 52. Qd6+
{[%clk 0:00:18.7]} 52... Qb6 {[%clk 0:00:11.1]} 53. Bb5+ {[%clk 0:00:14.2]}
53... Kxb5 {[%clk 0:00:07.9]} 54. bxa4+ {[%clk 0:00:15.6]} 54... Ka6+ {[%clk
0:00:07.2]} 55. Qxb6+ {[%clk 0:00:16.8]} 55... Kxb6 {[%clk 0:00:08.1]} 56. e7
{[%clk 0:00:18.2]} 56... Rh8 {[%clk 0:00:08.9]} 57. Kc2 {[%clk 0:00:19.1]} 57...
Bf6 {[%clk 0:00:10.1]} 58. Kd3 {[%clk 0:00:19.8]} 58... Bxe7 {[%clk 0:00:11.2]}
59. Kd4 {[%clk 0:00:21.5]} 59... Rd8 {[%clk 0:00:10.1]} 60. Ke5 {[%clk
0:00:22.7]} 60... d4 {[%clk 0:00:09.6]} 61. Ke6 {[%clk 0:00:24.1]} 61... Bxh4
{[%clk 0:00:10.2]} 62. f6 {[%clk 0:00:24.8]} 62... Bxf6 {[%clk 0:00:10.5]} 63.
Kxf6 {[%clk 0:00:26.7]} 63... d3 {[%clk 0:00:11.8]} 0-1

[Event "GrandPrix_30.05"]
[Site "Chess.com"]
[Date "2020.05.30"]
[Round "3"]
[White "A_N_D-R_E_I"]
[Black "Borisss85"]
[Result "1-0"]
[WhiteElo "2081"]
[BlackElo "2114"]
[TimeControl "600+2"]
[EndTime "9:25:28 PDT"]
[Termination "A_N_D-R_E_I won by resignation"]

1. e4 {[%clk 0:09:57.1]} 1... c5 {[%clk 0:10:00.3]} 2. Nf3 {[%clk 0:09:56.6]}
2... e6 {[%clk 0:10:01.2]} 3. d4 {[%clk 0:09:57.5]} 3... cxd4 {[%clk 0:10:01.8]}
4. Nxd4 {[%clk 0:09:59.4]} 4... a6 {[%clk 0:10:02.8]} 5. Nc3 {[%clk 0:09:58.8]}
5... Qc7 {[%clk 0:10:02.9]} 6. Bd3 {[%clk 0:09:54.1]} 6... Nc6 {[%clk
0:10:03.4]} 7. Nxc6 {[%clk 0:09:54.8]} 7... dxc6 {[%clk 0:10:03.7]} 8. O-O
{[%clk 0:09:53]} 8... e5 {[%clk 0:10:04]} 9. f4 {[%clk 0:09:48.9]} 9... Nf6
{[%clk 0:10:03.9]} 10. fxe5 {[%clk 0:09:46.5]} 10... Bc5+ {[%clk 0:10:04.1]} 11.
Kh1 {[%clk 0:09:47.1]} 11... Ng4 {[%clk 0:10:04.7]} 12. Qf3 {[%clk 0:09:42.6]}
12... Nxe5 {[%clk 0:10:05]} 13. Qg3 {[%clk 0:09:42.9]} 13... f6 {[%clk
0:10:05.6]} 14. Bf4 {[%clk 0:09:39.2]} 14... Bd6 {[%clk 0:10:06.1]} 15. a4
{[%clk 0:09:27.4]} 15... Be6 {[%clk 0:10:05.6]} 16. a5 {[%clk 0:09:22.5]} 16...
O-O-O {[%clk 0:10:05.2]} 17. Qe3 {[%clk 0:04:40.9]} 17... h5 {[%clk 0:07:02.4]}
18. Na4 {[%clk 0:03:05.4]} 18... Kb8 {[%clk 0:05:56.6]} 19. Nc5 {[%clk
0:02:21.3]} 19... Bc8 {[%clk 0:05:54.5]} 20. h3 {[%clk 0:01:53.3]} 20... Nxd3
{[%clk 0:02:23.3]} 21. Bxd6 {[%clk 0:01:43.9]} 21... Qxd6 {[%clk 0:02:14.1]} 22.
Nxd3 {[%clk 0:01:20.1]} 22... Rhe8 {[%clk 0:02:13.8]} 23. Ra4 {[%clk 0:01:05.3]}
23... h4 {[%clk 0:01:35.2]} 24. Rb4 {[%clk 0:01:01.9]} 24... Re7 {[%clk
0:01:16.6]} 25. Qb6 {[%clk 0:00:58]} 25... Ka8 {[%clk 0:01:07.8]} 26. Nc5 {[%clk
0:00:24.3]} 26... Qc7 {[%clk 0:00:59.4]} 27. Qxc7 {[%clk 0:00:16.9]} 27... Rxc7
{[%clk 0:00:59.6]} 28. Rf4 {[%clk 0:00:18.5]} 28... Rd2 {[%clk 0:00:47]} 29. Rc4
{[%clk 0:00:17.9]} 29... Re7 {[%clk 0:00:28]} 30. Rxh4 {[%clk 0:00:18.2]} 30...
Ka7 {[%clk 0:00:28.9]} 31. Rh8 {[%clk 0:00:18.8]} 31... Be6 {[%clk 0:00:20.6]}
32. Rc3 {[%clk 0:00:20.1]} 32... f5 {[%clk 0:00:12]} 33. Na4 {[%clk 0:00:19.7]}
33... Red7 {[%clk 0:00:05.8]} 34. Nc5 {[%clk 0:00:16.8]} 34... Re7 {[%clk
0:00:06.6]} 35. e5 {[%clk 0:00:13.9]} 35... f4 {[%clk 0:00:07]} 36. Na4 {[%clk
0:00:11.9]} 36... Red7 {[%clk 0:00:06.8]} 37. Nc5 {[%clk 0:00:12.9]} 37... Re7
{[%clk 0:00:07.6]} 38. Ne4 {[%clk 0:00:14.4]} 38... Rd1+ {[%clk 0:00:07.6]} 39.
Kh2 {[%clk 0:00:15.3]} 39... Bd5 {[%clk 0:00:09.1]} 40. Nd6 {[%clk 0:00:14.9]}
40... Rxe5 {[%clk 0:00:09.2]} 41. Nc8+ {[%clk 0:00:15.5]} 41... Kb8 {[%clk
0:00:10.4]} 42. Nb6+ {[%clk 0:00:16]} 42... Kc7 {[%clk 0:00:11.6]} 43. Rc8+
{[%clk 0:00:14]} 43... Kd6 {[%clk 0:00:12.6]} 44. Rd8+ {[%clk 0:00:14.9]} 44...
Ke7 {[%clk 0:00:13.5]} 45. Rd7+ {[%clk 0:00:13.7]} 45... Kf6 {[%clk 0:00:13.3]}
46. Nxd5+ {[%clk 0:00:09.3]} 46... Rexd5 {[%clk 0:00:14.1]} 47. Rxb7 {[%clk
0:00:09.6]} 47... R5d2 {[%clk 0:00:13.9]} 48. Rxc6+ {[%clk 0:00:10.2]} 48... Ke5
{[%clk 0:00:13.3]} 49. Rxg7 {[%clk 0:00:09.6]} 49... Rb1 {[%clk 0:00:12.2]} 50.
Rxa6 {[%clk 0:00:06.1]} 50... Rxb2 {[%clk 0:00:12.6]} 51. Raa7 {[%clk
0:00:06.4]} 51... Rbxc2 {[%clk 0:00:12.7]} 52. Rae7+ {[%clk 0:00:07.5]} 52...
Kf6 {[%clk 0:00:13.7]} 53. Ref7+ {[%clk 0:00:08.6]} 53... Ke5 {[%clk 0:00:14.6]}
54. a6 {[%clk 0:00:10]} 54... Ra2 {[%clk 0:00:14]} 55. a7 {[%clk 0:00:11.2]}
55... Ke6 {[%clk 0:00:14.8]} 56. h4 {[%clk 0:00:12]} 56... Ke5 {[%clk
0:00:14.4]} 57. h5 {[%clk 0:00:13.3]} 57... Rd8 {[%clk 0:00:13.6]} 58. h6 {[%clk
0:00:14.1]} 58... Rh8 {[%clk 0:00:14.4]} 59. h7 {[%clk 0:00:15.5]} 59... Ra6
{[%clk 0:00:13.5]} 60. Kg1 {[%clk 0:00:15.6]} 60... Ke4 {[%clk 0:00:14]} 61. Rg8
{[%clk 0:00:16.3]} 1-0

[Event "GrandPrix_30.05"]
[Site "Chess.com"]
[Date "2020.05.30"]
[Round "3"]
[White "LuckyLuka04"]
[Black "GM_dmitrij"]
[Result "0-1"]
[WhiteElo "2174"]
[BlackElo "2481"]
[TimeControl "600+2"]
[EndTime "9:25:29 PDT"]
[Termination "GM_dmitrij won by resignation"]

1. d4 {[%clk 0:10:01.9]} 1... Nf6 {[%clk 0:09:59.9]} 2. Nf3 {[%clk 0:10:03]}
2... e6 {[%clk 0:09:58.1]} 3. Bf4 {[%clk 0:10:03.4]} 3... d5 {[%clk 0:09:58.5]}
4. e3 {[%clk 0:10:04.8]} 4... Bd6 {[%clk 0:09:59.5]} 5. Bg3 {[%clk 0:10:05.8]}
5... c5 {[%clk 0:10:00.5]} 6. c3 {[%clk 0:10:06.6]} 6... Qc7 {[%clk 0:09:59.2]}
7. Nbd2 {[%clk 0:10:04.8]} 7... Nbd7 {[%clk 0:09:59.9]} 8. Bd3 {[%clk 0:09:57]}
8... O-O {[%clk 0:10:00.4]} 9. O-O {[%clk 0:09:53.8]} 9... b6 {[%clk 0:09:58.9]}
10. e4 {[%clk 0:09:40.7]} 10... cxd4 {[%clk 0:09:49.7]} 11. Bxd6 {[%clk
0:08:45.2]} 11... Qxd6 {[%clk 0:09:49.6]} 12. cxd4 {[%clk 0:08:40.3]} 12... dxe4
{[%clk 0:09:47.7]} 13. Nxe4 {[%clk 0:08:42.2]} 13... Qe7 {[%clk 0:09:32.5]} 14.
Ng3 {[%clk 0:08:27.1]} 14... Bb7 {[%clk 0:09:30.3]} 15. a3 {[%clk 0:08:22.2]}
15... Rfd8 {[%clk 0:09:21.7]} 16. Qe2 {[%clk 0:08:05.9]} 16... Nf8 {[%clk
0:08:58.3]} 17. Rfd1 {[%clk 0:07:57.6]} 17... Ng6 {[%clk 0:08:29.6]} 18. Bxg6
{[%clk 0:06:44.7]} 18... hxg6 {[%clk 0:08:31.5]} 19. Ne5 {[%clk 0:06:31.5]}
19... Rd6 {[%clk 0:08:00.7]} 20. f3 {[%clk 0:06:16]} 20... Rad8 {[%clk
0:07:06.3]} 21. Qf2 {[%clk 0:06:08.6]} 21... Nd7 {[%clk 0:05:50]} 22. Nc4 {[%clk
0:05:50]} 22... Rc6 {[%clk 0:05:49]} 23. Ne3 {[%clk 0:05:49.7]} 23... Nf6 {[%clk
0:05:41.3]} 24. Ne4 {[%clk 0:05:13.2]} 24... Nxe4 {[%clk 0:04:26.6]} 25. fxe4
{[%clk 0:05:15.1]} 25... Rc7 {[%clk 0:04:27.8]} 26. d5 {[%clk 0:04:50.9]} 26...
exd5 {[%clk 0:04:22.7]} 27. exd5 {[%clk 0:04:16.8]} 27... Rcd7 {[%clk 0:04:23]}
28. Re1 {[%clk 0:02:18.4]} 28... Qf8 {[%clk 0:04:20.6]} 29. Rad1 {[%clk
0:02:15.6]} 29... Bxd5 {[%clk 0:04:17]} 30. Nxd5 {[%clk 0:02:11]} 30... Rxd5
{[%clk 0:04:18.3]} 31. Rxd5 {[%clk 0:02:11.2]} 31... Rxd5 {[%clk 0:04:20.2]} 32.
h3 {[%clk 0:02:00.9]} 32... g5 {[%clk 0:03:48.1]} 33. Qf3 {[%clk 0:01:38.6]}
33... Qd8 {[%clk 0:02:25.2]} 34. Qe4 {[%clk 0:01:21.9]} 34... g6 {[%clk
0:02:10.4]} 35. Qe8+ {[%clk 0:01:08.9]} 35... Qxe8 {[%clk 0:02:08.9]} 36. Rxe8+
{[%clk 0:01:10.8]} 36... Kg7 {[%clk 0:02:10.8]} 37. Re7 {[%clk 0:01:03.8]} 37...
a5 {[%clk 0:02:08.8]} 38. Re2 {[%clk 0:00:54.8]} 38... Rb5 {[%clk 0:02:06.5]}
39. Kf2 {[%clk 0:00:49.7]} 39... Rb3 {[%clk 0:02:03]} 40. Ke1 {[%clk 0:00:49.4]}
40... f5 {[%clk 0:01:47.9]} 41. Kd1 {[%clk 0:00:49.7]} 41... f4 {[%clk
0:01:44.4]} 42. Kc2 {[%clk 0:00:40.8]} 42... a4 {[%clk 0:01:25.6]} 43. Rd2
{[%clk 0:00:13.8]} 43... Rg3 {[%clk 0:00:58.6]} 44. Kc1 {[%clk 0:00:14.6]} 44...
b5 {[%clk 0:00:55.8]} 45. Kd1 {[%clk 0:00:07.4]} 45... Kf6 {[%clk 0:00:50.8]}
46. Ke1 {[%clk 0:00:08.5]} 46... Ke5 {[%clk 0:00:47.7]} 47. Rc2 {[%clk
0:00:05.7]} 47... Kd4 {[%clk 0:00:37.8]} 48. Kf2 {[%clk 0:00:03.5]} 48... Rb3
{[%clk 0:00:37.9]} 49. Ke1 {[%clk 0:00:03]} 49... Rg3 {[%clk 0:00:21.4]} 50. Kf1
{[%clk 0:00:02.6]} 50... g4 {[%clk 0:00:21.9]} 51. hxg4 {[%clk 0:00:02.5]} 51...
Rxg4 {[%clk 0:00:23.8]} 52. Rc7 {[%clk 0:00:03.5]} 52... g5 {[%clk 0:00:21]} 53.
Rc2 {[%clk 0:00:04.9]} 53... Rg3 {[%clk 0:00:21.9]} 54. Kf2 {[%clk 0:00:06]}
54... Rd3 {[%clk 0:00:21.1]} 55. Ke2 {[%clk 0:00:04.6]} 55... g4 {[%clk
0:00:21]} 56. Rc7 {[%clk 0:00:05.2]} 56... Rg3 {[%clk 0:00:18.2]} 57. Kf2 {[%clk
0:00:06.2]} 57... Rb3 {[%clk 0:00:18.9]} 58. Rc2 {[%clk 0:00:07.3]} 58... Kd3
{[%clk 0:00:18.9]} 59. Rc5 {[%clk 0:00:02.6]} 59... Rxb2+ {[%clk 0:00:19.3]} 60.
Ke1 {[%clk 0:00:03.3]} 60... b4 {[%clk 0:00:19.5]} 61. axb4 {[%clk 0:00:03.2]}
61... a3 {[%clk 0:00:21.4]} 62. Rd5+ {[%clk 0:00:04]} 62... Kc4 {[%clk
0:00:21.7]} 63. Ra5 {[%clk 0:00:05.9]} 63... a2 {[%clk 0:00:23]} 0-1